bitfinex/quotes_SOLUSD_20241127
["timestamp","ask_amount","ask_price","bid_price","bid_amount"]
[1732698419541,11.27324477,233.84,233.28,17.155527]
[1732698420841,20.0,233.54,233.28,17.155527]
[1732698422243,23.84369212,233.85,233.28,17.155527]
[1732698422540,6.69212012,233.85,233.28,17.155527]
[1732698423841,20.0,233.54,233.28,17.155527]
[1732698439158,6.69212012,233.85,233.28,17.155527]
[1732698441855,20.0,233.54,233.28,17.155527]
[1732698442456,6.69212012,233.85,233.28,17.155527]
[1732698442956,6.69212012,233.85,233.51,0.12549]
[1732698443857,20.0,233.8,233.51,0.12549]
[1732698444154,20.0,233.8,233.52,17.148617]
[1732698444548,6.69212012,233.85,233.52,17.148617]
[1732698445760,17.148617,233.77,233.52,17.148617]
[1732698445959,20.0,233.54,233.52,17.148617]
[1732698446161,20.0,233.54,233.27,4.16851348]
[1732698446556,20.0,233.54,233.28,17.153709]
[1732698456793,20.0,233.54,233.27,4.16851348]
[1732698457196,20.0,233.54,233.27,21.33516248]
[1732698458108,20.0,233.54,233.27,4.16851348]
[1732698489813,19.64650973,233.54,233.27,4.16851348]
[1732698492297,12.91230043,233.53,233.27,4.16851348]
[1732698512234,12.03381797,233.53,233.27,4.16851348]
[1732698512443,12.01914991,233.52,233.27,4.16851348]
[1732698530950,12.01914991,233.52,233.27,3.70331348]
[1732698535660,29.22017691,233.52,233.27,3.70331348]
[1732698535851,13.67577375,233.51,233.27,3.70331348]
[1732698547664,13.67577375,233.51,233.27,3.29191348]
[1732698573294,14.96384299,233.5,233.27,3.29191348]
[1732698595801,17.197145,233.49,233.27,3.29191348]
[1732698596001,14.6339521,233.48,233.27,3.29191348]
[1732698634538,17.197145,233.49,233.27,3.29191348]
[1732698634916,30.9239731,233.69,233.27,3.29191348]
[1732698636931,20.0,233.54,233.27,3.29191348]
[1732698651538,25.73,233.53,233.27,3.29191348]
[1732698653340,25.73,233.68,233.27,3.29191348]
[1732698653522,25.73,233.66,233.27,3.29191348]
[1732698653723,25.73,233.64,233.27,3.29191348]
[1732698653924,25.73,233.62,233.27,3.29191348]
[1732698654842,25.73,233.53,233.27,3.29191348]
[1732698668253,25.73,233.62,233.27,3.29191348]
[1732698669255,6.79798652,233.27,233.22,30.314753]
[1732698677171,25.73,233.26,233.22,30.314753]
[1732698678471,6.79798652,233.27,233.22,30.314753]
[1732698688778,25.73,233.26,233.22,30.314753]
[1732698696161,6.79798652,233.27,233.22,30.314753]
[1732698702583,32.52798652,233.27,233.22,30.314753]
[1732698705880,6.79798652,233.27,233.22,30.314753]
[1732698769236,6.79798652,233.27,233.24,79.19097079]
[1732698784338,32.52798652,233.27,233.24,79.19097079]
[1732698787249,32.52798652,233.27,233.24,57.71097079]
[1732698799757,30.20409601,233.27,233.24,57.71097079]
[1732698804861,30.20409601,233.27,233.24,36.23097079]
[1732698808065,30.20409601,233.27,233.24,36.1546755]
[1732698831278,29.77630847,233.27,233.24,36.1546755]
[1732698842889,29.77630847,233.27,233.24,14.6746755]
[1732698866815,29.77630847,233.27,233.22,30.314753]
[1732698873322,46.98050547,233.27,233.22,30.314753]
[1732698873625,29.77630847,233.27,233.22,30.314753]
[1732698877928,25.73,233.25,233.22,30.314753]
[1732698878226,25.73,233.23,233.22,30.314753]
[1732698880725,25.73,233.26,233.22,30.314753]
[1732698885934,25.73,233.26,233.22,8.834753]
[1732698889229,25.73,233.24,233.22,8.834753]
[1732698891635,40.80814597,233.24,233.22,8.834753]
[1732698897019,25.73,233.26,233.22,8.834753]
[1732698905848,25.73,233.26,233.21,92.97279925]
[1732698906346,25.73,233.26,233.21,78.73279925]
[1732698907144,40.21464707,233.26,233.21,78.73279925]
[1732698907543,14.49668536,233.25,233.21,78.73279925]
[1732698908044,14.49668536,233.25,233.21,64.49279925]
[1732698908244,14.49668536,233.25,233.21,0.41279925]
[1732698908447,14.49668536,233.25,233.15,267.77258198]
[1732698908849,14.49668536,233.25,233.15,260.65258198]
[1732698910647,14.49668536,233.25,233.15,244.41258198]
[1732698911154,25.73,233.26,233.15,244.41258198]
[1732698924074,17.193382,233.25,233.15,244.41258198]
[1732698926278,4.04630847,233.27,233.15,244.41258198]
[1732698948499,4.04630847,233.27,233.15,244.41258198]
[1732698948790,25.76,233.39,233.15,244.41258198]
[1732698950391,17.61068877,233.4,233.15,244.41258198]
[1732698953397,43.37068877,233.4,233.15,244.41258198]
[1732698958599,47.41699677,233.4,233.15,244.41258198]
[1732698966902,21.65699677,233.4,233.15,244.41258198]
[1732698967099,4.046308,233.4,233.15,244.41258198]
[1732698968989,29.806308,233.4,233.15,244.41258198]
[1732698973112,4.046308,233.4,233.15,244.41258198]
[1732699002366,17.176327,233.47,233.15,244.41258198]
[1732699002854,38.11150111,233.46,233.15,244.41258198]
[1732699022858,23.10970301,233.46,233.15,244.41258198]
[1732699023165,22.69981401,233.45,233.15,244.41258198]
[1732699027470,22.69981401,233.45,233.15,240.36627398]
[1732699056998,24.87575058,233.69,233.15,240.36627398]
[1732699057200,17.178327,233.5,233.15,240.36627398]
[1732699063728,19.90803612,233.49,233.15,240.36627398]
[1732699071130,17.178327,233.5,233.15,240.36627398]
[1732699073415,20.10409505,233.49,233.15,240.36627398]
[1732699097646,20.10409505,233.49,233.15,238.66236308]
[1732699112159,49.19598835,233.49,233.15,238.66236308]
[1732699132278,31.40787488,233.48,233.15,238.66236308]
[1732699150901,31.40787488,233.48,233.15,238.39705408]
[1732699165314,74.82921973,233.53,233.15,238.39705408]
[1732699165514,37.22909633,233.47,233.15,238.39705408]
[1732699186016,37.08912552,233.69,233.16,0.64285552]
[1732699187824,20.0,233.54,233.16,0.64285552]
[1732699188024,27.12036013,233.53,233.16,0.64285552]
[1732699193025,27.12036013,233.53,233.17,0.12549]
[1732699193237,27.12036013,233.53,233.18,0.64248744]
[1732699195625,27.12036013,233.53,233.15,238.39705408]
[1732699200429,27.12036013,233.53,233.16,0.64279393]
[1732699200826,27.12036013,233.53,233.15,238.39705408]
[1732699202532,27.12036013,233.53,233.16,0.12549]
[1732699205634,27.12036013,233.53,233.15,238.39705408]
[1732699207533,27.12036013,233.53,233.16,0.12549]
[1732699208032,20.0,233.54,233.16,0.12549]
[1732699208637,20.0,233.54,233.15,238.39705408]
[1732699209134,18.54572385,233.53,233.15,238.39705408]
[1732699217642,18.54572385,233.53,233.16,0.64265746]
[1732699218140,18.54572385,233.53,233.15,238.39705408]
[1732699218539,18.54572385,233.53,233.16,0.64267239]
[1732699223322,18.54572385,233.53,233.15,238.39705408]
[1732699227562,18.54572385,233.53,233.16,0.64284099]
[1732699229030,17.86303263,233.52,233.16,0.64284099]
[1732699229352,17.86303263,233.52,233.15,238.39705408]
[1732699230638,17.86303263,233.52,233.16,0.64278488]
[1732699233950,17.86303263,233.52,233.16,0.64279102]
[1732699235753,17.86303263,233.52,233.15,238.39705408]
[1732699245448,17.86303263,233.52,233.16,0.64291091]
[1732699260175,17.86303263,233.52,233.17,0.12549]
[1732699260350,17.86303263,233.52,233.18,0.64240301]
[1732699260555,38.25251077,233.69,233.19,0.12549]
[1732699260756,38.25251077,233.69,233.18,0.64240301]
[1732699260757,38.25251077,233.69,233.21,0.12549]
[1732699260972,38.25251077,233.69,233.22,0.64228925]
[1732699261877,20.0,233.54,233.22,0.64228925]
[1732699274509,16.68099976,233.53,233.22,0.64228925]
[1732699274805,16.68099976,233.53,233.23,0.64262378]
[1732699275908,16.68099976,233.53,233.24,0.64265321]
[1732699276904,16.68099976,233.53,233.25,0.64262448]
[1732699277109,16.68099976,233.53,233.16,0.64262965]
[1732699292923,17.179055,233.52,233.16,0.64262965]
[1732699297323,18.90973555,233.51,233.16,0.64262965]
[1732699300412,18.90973555,233.51,233.17,0.12549]
[1732699300616,18.90973555,233.51,233.18,0.64231105]
[1732699312227,18.90973555,233.51,233.19,0.12549]
[1732699312415,18.90973555,233.51,233.2,0.64224533]
[1732699313535,7.61039718,233.51,233.2,0.64224533]
[1732699317030,7.61039718,233.51,233.21,0.28062495]
[1732699317223,20.0,233.54,233.22,0.64223744]
[1732699318935,20.0,233.54,233.23,0.17354085]
[1732699319134,20.0,233.54,233.24,0.64224502]
[1732699321647,18.9907455,233.69,233.24,0.64224502]
[1732699321949,17.168873,233.63,233.24,0.64224502]
[1732699322151,17.168873,233.63,233.25,17.168815]
[1732699322449,17.168873,233.63,233.26,0.64212369]
[1732699322950,18.9907455,233.69,233.26,0.64212369]
[1732699323251,17.166057,233.68,233.27,0.12549]
[1732699323449,17.166057,233.68,233.28,0.64198305]
[1732699323829,18.9907455,233.69,233.29,0.12549]
[1732699324036,18.9907455,233.69,233.3,0.6418896]
[1732699324244,18.9907455,233.69,233.31,0.2211347]
[1732699324440,18.9907455,233.69,233.32,0.7206921]
[1732699324629,18.9907455,233.69,233.33,0.15957969]
[1732699324830,18.9907455,233.69,233.34,0.64183858]
[1732699325135,18.9907455,233.69,233.35,0.03302064]
[1732699325340,18.9907455,233.69,233.36,0.64183581]
[1732699325538,18.9907455,233.69,233.37,0.02933194]
[1732699325743,18.9907455,233.69,233.38,0.64182342]
[1732699326346,18.9907455,233.69,233.39,0.02932942]
[1732699326553,18.9907455,233.69,233.4,0.64173569]
[1732699326850,18.9907455,233.69,233.41,0.02932691]
[1732699327350,20.0,233.54,233.41,0.02932691]
[1732699327552,20.0,233.54,233.42,0.64174584]
[1732699327947,18.9907455,233.69,233.43,0.64179728]
[1732699328151,22.2093,233.7,233.43,0.64179728]
[1732699328532,22.2093,233.7,233.44,0.12549]
[1732699328732,22.2093,233.7,233.45,0.6415875]
[1732699329334,20.0,233.54,233.45,0.6415875]
[1732699330553,22.2093,233.7,233.46,0.12549]
[1732699330738,22.2093,233.7,233.47,0.64150903]
[1732699331347,22.2093,233.7,233.48,0.12549]
[1732699331545,22.2093,233.7,233.49,0.64146585]
[1732699332455,22.2093,233.7,233.29,0.12549]
[1732699332654,22.2093,233.7,233.31,0.12549]
[1732699332858,22.2093,233.7,233.33,0.12549]
[1732699333040,22.2093,233.7,233.35,0.12549]
[1732699333239,22.2093,233.7,233.37,0.12549]
[1732699333548,22.2093,233.7,233.39,0.12549]
[1732699333736,22.2093,233.7,233.41,0.12549]
[1732699333937,20.0,233.54,233.43,0.12549]
[1732699334152,20.0,233.54,233.45,0.12549]
[1732699334353,20.0,233.54,233.47,0.12549]
[1732699334561,20.0,233.54,233.48,0.64159179]
[1732699336759,20.0,233.54,233.49,5.101931]
[1732699337061,20.0,233.54,233.5,0.64161381]
[1732699338639,20.0,233.54,233.51,0.64169655]
[1732699339640,20.0,233.54,233.51,0.64163996]
[1732699343350,20.0,233.54,233.3,15.42074599]
[1732699343351,20.0,233.54,233.44,15.420746]
[1732699343550,20.0,233.54,233.45,0.64180173]
[1732699345664,20.0,233.54,233.31,0.64189292]
[1732699345849,20.0,233.54,233.39,15.420746]
[1732699346046,20.0,233.54,233.31,0.64189292]
[1732699346252,20.0,233.54,233.32,15.420746]
[1732699346452,20.0,233.54,233.33,0.64190421]
[1732699347057,20.0,233.54,233.34,0.12549]
[1732699347243,20.0,233.54,233.35,0.64189908]
[1732699349566,20.0,233.54,233.21,5.10193077]
[1732699349567,20.0,233.54,233.36,0.64207932]
[1732699349776,20.0,233.54,233.31,17.164819]
[1732699350067,20.0,233.54,233.32,0.64209112]
[1732699350255,20.0,233.54,233.16,0.64213713]
[1732699350455,20.0,233.54,233.23,17.164819]
[1732699350647,20.0,233.54,233.24,0.64220263]
[1732699354773,20.0,233.54,233.25,0.6423958]
[1732699355573,20.0,233.54,233.26,0.64239291]
[1732699356673,20.0,233.54,233.27,0.64239016]
[1732699357671,20.0,233.54,233.28,0.64239983]
[1732699358777,20.0,233.54,233.29,0.64240402]
[1732699359777,20.0,233.54,233.3,0.64241012]
[1732699360774,20.0,233.54,233.31,0.64229881]
[1732699361979,20.0,233.54,233.32,0.64230728]
[1732699362273,20.0,233.54,233.2,0.64231128]
[1732699365577,17.171538,233.53,233.2,0.64231128]
[1732699367077,20.0,233.54,233.2,0.64231128]
[1732699369464,20.0,233.54,233.21,0.12549]
[1732699369661,17.168617,233.57,233.22,0.64219017]
[1732699371484,20.0,233.54,233.22,0.64219017]
[1732699391085,20.0,233.54,233.23,0.64261989]
[1732699391998,20.0,233.54,233.24,0.64262865]
[1732699393085,20.0,233.54,233.25,0.64262401]
[1732699393291,20.0,233.54,233.16,0.64262862]
[1732699400511,20.0,233.54,233.15,238.39705408]
[1732699404117,17.168617,233.57,233.15,238.39705408]
[1732699405318,20.0,233.54,233.15,238.39705408]
[1732699413935,47.19979744,233.53,233.15,238.39705408]
[1732699414225,12.89,233.51,233.15,238.39705408]
[1732699414405,12.89,233.49,233.15,238.39705408]
[1732699414612,12.89,233.47,233.15,238.39705408]
[1732699414831,12.89,233.45,233.15,238.39705408]
[1732699415008,12.89,233.43,233.15,238.39705408]
[1732699415210,12.89,233.41,233.15,238.39705408]
[1732699415425,26.89256732,233.4,233.15,238.39705408]
[1732699415630,26.6352831,233.39,233.15,238.39705408]
[1732699415831,13.51614358,233.38,233.15,238.39705408]
[1732699416929,26.40614358,233.38,233.15,238.39705408]
[1732699417126,13.46807309,233.37,233.15,238.39705408]
[1732699417428,12.89,233.36,233.15,238.39705408]
[1732699417730,26.34814741,233.35,233.15,240.39705408]
[1732699417924,13.31190547,233.34,233.15,240.39705408]
[1732699424435,25.73,233.33,233.15,240.39705408]
[1732699427736,25.73,233.31,233.15,240.39705408]
[1732699427932,50.95425719,233.31,233.15,240.39705408]
[1732699430640,50.95425719,233.31,233.25,0.1]
[1732699436828,12.89,233.29,233.25,0.1]
[1732699437037,12.89,233.27,233.25,0.1]
[1732699437236,27.49722615,233.26,233.25,0.1]
[1732699437434,27.49722615,233.26,233.15,240.39705408]
[1732699437635,12.89,233.24,233.15,240.39705408]
[1732699437941,12.89,233.22,233.15,240.39705408]
[1732699438149,12.89,233.2,233.15,240.39705408]
[1732699438439,12.89,233.18,233.15,240.39705408]
[1732699438645,12.89,233.16,233.15,240.39705408]
[1732699438853,25.44897558,233.16,233.15,240.39705408]
[1732699441239,12.55897558,233.16,233.15,240.39705408]
[1732699444055,12.55897558,233.16,233.15,237.39705408]
[1732699444243,12.55897558,233.16,233.15,234.39705408]
[1732699444438,12.55897558,233.16,233.15,225.39705408]
[1732699444630,12.55897558,233.16,233.15,216.39705408]
[1732699446352,25.73,233.31,233.15,216.39705408]
[1732699447759,11.42066295,233.37,233.15,216.39705408]
[1732699456661,11.42066295,233.37,233.15,1016.39705408]
[1732699458041,11.42066295,233.37,233.16,0.64281355]
[1732699458541,12.91,233.67,233.16,0.64281355]
[1732699458741,12.91,233.65,233.15,1016.39705408]
[1732699458952,12.91,233.63,233.15,1016.39705408]
[1732699459155,12.91,233.61,233.15,1016.39705408]
[1732699459441,16.12986728,233.62,233.15,1016.39705408]
[1732699459442,20.0,233.54,233.15,1016.39705408]
[1732699459653,13.76045992,233.53,233.15,1016.39705408]
[1732699468749,13.76045992,233.53,233.16,0.64280447]
[1732699469668,13.76045992,233.53,233.15,1016.39705408]
[1732699476457,26.67045992,233.53,233.15,1016.39705408]
[1732699476662,29.01089984,233.52,233.15,1016.39705408]
[1732699476867,12.91,233.5,233.15,1016.39705408]
[1732699477066,16.30325029,233.49,233.15,1016.39705408]
[1732699477377,29.21325029,233.49,233.15,1016.39705408]
[1732699477575,16.01896878,233.48,233.15,1016.39705408]
[1732699492502,12.91,233.47,233.15,1016.39705408]
[1732699492712,15.52596285,233.46,233.15,1016.39705408]
[1732699503418,28.43596285,233.46,233.15,1029.30705408]
[1732699503717,15.82884637,233.45,233.15,1016.39705408]
[1732699504618,15.82884637,233.45,233.16,0.64284201]
[1732699518531,15.82884637,233.45,233.15,1029.30705408]
[1732699519831,15.82884637,233.45,233.16,0.6426766]
[1732699524435,15.82884637,233.45,233.17,12.91]
[1732699525532,15.82884637,233.45,233.18,0.64259813]
[1732699529737,15.82884637,233.45,233.19,12.91]
[1732699530231,15.82884637,233.45,233.18,800.0]
[1732699531921,15.82884637,233.45,233.19,0.6428118]
[1732699533038,32.69677719,233.53,233.19,0.6428118]
[1732699543447,32.41737953,233.53,233.19,0.6428118]
[1732699545449,25.73,233.52,233.19,0.6428118]
[1732699545842,25.73,233.5,233.18,800.0]
[1732699548651,25.73,233.5,233.19,0.64281806]
[1732699548833,25.73,233.5,233.19,13.55281806]
[1732699558054,25.73,233.5,233.19,13.65281806]
[1732699558236,25.73,233.5,233.19,30.82875306]
[1732699565165,25.73,233.5,233.19,13.65281806]
[1732699569274,18.11507736,233.51,233.19,13.65281806]
[1732699571971,18.11507736,233.51,233.4,1.0]
[1732699574171,20.0,233.54,233.4,1.0]
[1732699576781,19.71209104,233.53,233.19,13.01]
[1732699582783,19.71209104,233.53,233.3,800.0]
[1732699589303,19.71209104,233.53,233.31,0.6426126]
[1732699591203,19.71209104,233.53,233.3,800.0]
[1732699601390,19.71209104,233.53,233.3,792.88]
[1732699606716,19.71209104,233.53,233.3,785.76]
[1732699607209,32.62209104,233.53,233.3,671.84]
[1732699607409,32.62209104,233.53,233.3,629.12]
[1732699607809,32.62209104,233.53,233.3,622.0]
[1732699608001,32.62209104,233.53,233.3,607.76]
[1732699608314,32.62209104,233.53,233.3,600.64]
[1732699611119,32.62209104,233.53,233.3,597.64]
[1732699616124,19.71209104,233.53,233.3,597.64]
[1732699624927,25.77754766,233.52,233.3,597.64]
[1732699635234,25.77754766,233.52,233.31,0.64267433]
[1732699644945,20.0,233.54,233.31,0.64267433]
[1732699669365,22.69005519,233.67,233.31,0.64267433]
[1732699671938,22.69005519,233.67,233.32,0.12549]
[1732699672142,22.69005519,233.67,233.33,0.64191417]
[1732699672560,22.69005519,233.67,233.34,0.12549]
[1732699672747,22.69005519,233.67,233.36,0.12549]
[1732699672937,22.69005519,233.67,233.37,0.64181135]
[1732699673860,20.0,233.54,233.38,0.12549]
[1732699674057,22.2093,233.7,233.39,0.64183907]
[1732699674359,22.2093,233.7,233.4,0.12549]
[1732699674559,22.2093,233.7,233.41,0.64165952]
[1732699674943,22.2093,233.7,233.31,0.12549]
[1732699676359,20.0,233.54,233.31,0.12549]
[1732699678165,22.2093,233.7,233.33,0.12549]
[1732699678350,22.2093,233.7,233.35,0.12549]
[1732699678553,22.2093,233.7,233.37,0.12549]
[1732699678752,22.2093,233.7,233.38,0.64174873]
[1732699679866,20.0,233.54,233.39,0.12549]
[1732699680059,20.0,233.54,233.4,0.64181122]
[1732699680766,22.2093,233.7,233.41,0.12549]
[1732699680966,22.2093,233.7,233.4,0.64181122]
[1732699681766,22.2093,233.7,233.41,0.64175498]
[1732699682371,20.0,233.54,233.41,0.64175498]
[1732699682768,20.0,233.54,233.42,0.64177818]
[1732699683868,20.0,233.54,233.43,0.64177681]
[1732699684971,20.0,233.54,233.39,0.12549]
[1732699685266,20.0,233.54,233.38,0.64173766]
[1732699686570,20.0,233.54,233.39,0.12549]
[1732699687070,20.0,233.54,233.41,13.03549]
[1732699687768,20.0,233.54,233.41,12.91]
[1732699690571,20.0,233.54,233.42,0.64198669]
[1732699691773,20.0,233.54,233.4,597.64]
[1732699692273,20.0,233.54,233.41,0.64218376]
[1732699696968,20.0,233.54,233.41,13.55218376]
[1732699697168,22.2093,233.7,233.41,13.55218376]
[1732699698878,20.0,233.54,233.41,13.55218376]
[1732699699987,20.0,233.54,233.44,597.64]
[1732699700283,20.0,233.54,233.45,0.64203717]
[1732699700481,20.0,233.54,233.44,597.64]
[1732699700883,20.0,233.54,233.45,0.64213577]
[1732699707895,20.0,233.54,233.44,597.64]
[1732699721103,20.0,233.54,233.44,597.74]
[1732699736420,20.0,233.54,233.44,597.74]
[1732699743239,16.3197009,233.62,233.44,597.74]
[1732699744835,20.0,233.54,233.44,597.74]
[1732699745039,20.0,233.54,233.44,0.1]
[1732699762446,15.97868043,233.53,233.44,0.1]
[1732699773658,20.0,233.54,233.44,0.1]
[1732699775257,16.97773299,233.6,233.44,0.1]
[1732699777357,20.0,233.54,233.44,0.1]
[1732699790960,16.97773299,233.6,233.44,0.1]
[1732699792873,20.0,233.54,233.44,0.1]
[1732699802081,16.97773299,233.6,233.44,0.1]
[1732699803484,20.0,233.54,233.44,0.1]
[1732699807884,20.0,233.54,233.4,597.57043235]
[1732699809182,20.96365501,233.59,233.4,597.57043235]
[1732699810390,20.0,233.54,233.4,597.57043235]
[1732699812089,20.96365501,233.59,233.4,597.57043235]
[1732699813270,20.0,233.54,233.4,597.57043235]
[1732699813893,20.96365501,233.59,233.41,0.64229825]
[1732699815389,20.96365501,233.59,233.4,597.57043235]
[1732699815787,20.0,233.54,233.4,597.57043235]
[1732699818796,20.96365501,233.59,233.41,0.64230381]
[1732699819996,20.96365501,233.59,233.4,597.57043235]
[1732699820296,20.0,233.54,233.4,597.57043235]
[1732699839303,20.96365501,233.59,233.4,597.57043235]
[1732699840806,20.0,233.54,233.4,597.57043235]
[1732699845406,32.88,233.54,233.4,576.21043235]
[1732699846924,32.88,233.54,233.4,569.09043235]
[1732699847307,32.88,233.54,233.4,561.97043235]
[1732699847509,32.88,233.54,233.4,526.37043235]
[1732699847712,32.88,233.54,233.4,497.89043235]
[1732699848018,32.88,233.54,233.4,490.77043235]
[1732699848325,32.88,233.54,233.4,469.41043235]
[1732699849314,32.88,233.54,233.4,419.57043235]
[1732699849512,32.88,233.54,233.4,412.45043235]
[1732699855298,32.88,233.54,233.4,327.01043235]
[1732699855498,32.88,233.54,233.4,319.89043235]
[1732699855998,32.88,233.54,233.4,312.77043235]
[1732699862023,32.88,233.54,233.4,305.65043235]
[1732699862210,32.88,233.54,233.4,248.69043235]
[1732699862819,12.88,233.52,233.4,234.45043235]
[1732699863019,12.88,233.5,233.4,234.45043235]
[1732699863221,12.88,233.48,233.4,220.21043235]
[1732699863405,12.88,233.46,233.4,205.97043235]
[1732699863603,20.14663522,233.45,233.4,177.49043235]
[1732699863823,20.14663522,233.45,233.4,141.89043235]
[1732699863998,20.14663522,233.45,233.4,106.29043235]
[1732699864202,20.14663522,233.45,233.4,99.17043235]
[1732699866223,20.14663522,233.45,233.4,96.17043235]
[1732699867025,33.02663522,233.45,233.4,96.17043235]
[1732699867223,12.88,233.43,233.4,96.17043235]
[1732699867521,12.88,233.41,233.4,86.79318512]
[1732699867725,34.6626585,233.41,233.4,74.50258512]
[1732699867909,34.6626585,233.41,233.4,70.49798512]
[1732699868112,34.6626585,233.41,233.4,69.74168512]
[1732699868425,34.6626585,233.41,233.4,69.20958512]
[1732699868631,34.6626585,233.41,233.4,37.3073046]
[1732699868928,34.6626585,233.41,233.19,0.1]
[1732699869117,12.88,233.39,233.15,210.29835408]
[1732699869319,12.88,233.37,233.15,210.29835408]
[1732699869518,12.88,233.35,233.15,210.29835408]
[1732699869719,12.88,233.33,233.15,210.29835408]
[1732699869918,12.88,233.31,233.15,210.29835408]
[1732699870106,12.88,233.29,233.15,210.29835408]
[1732699870312,12.88,233.27,233.15,210.29835408]
[1732699870631,19.49756991,233.26,233.15,210.29835408]
[1732699880536,12.88,233.25,233.15,210.29835408]
[1732699880740,12.88,233.23,233.15,210.29835408]
[1732699881036,12.88,233.21,233.15,210.29835408]
[1732699881235,27.03463245,233.2,233.15,210.29835408]
[1732699881436,13.83833262,233.19,233.15,210.29835408]
[1732699887455,12.88,233.18,233.15,210.29835408]
[1732699887744,25.35212451,233.17,233.15,210.29835408]
[1732699887947,25.3720387,233.16,233.15,210.07265408]
[1732699890766,25.3720387,233.16,233.15,192.73705408]
[1732699892144,12.4920387,233.16,233.15,192.73705408]
[1732699894246,25.3720387,233.16,233.15,192.73705408]
[1732699895042,12.4920387,233.16,233.15,192.73705408]
[1732699896367,25.3720387,233.16,233.15,192.73705408]
[1732699898283,29.7058977,233.16,233.15,192.73705408]
[1732699898749,42.5858977,233.16,233.15,192.73705408]
[1732699899354,25.3720387,233.16,233.15,192.73705408]
[1732699900639,25.3720387,233.16,233.15,192.01585408]
[1732699901550,25.3720387,233.16,233.15,191.20865408]
[1732699902659,25.3720387,233.16,233.15,189.75065408]
[1732699902848,25.3720387,233.16,233.15,168.23095408]
[1732699908561,22.52066371,233.16,233.15,168.23095408]
[1732699908764,22.52066371,233.16,233.15,148.01945408]
[1732699909661,22.52066371,233.16,233.15,130.25215408]
[1732699914861,22.52066371,233.16,233.15,128.92565408]
[1732699921855,22.52066371,233.16,233.15,126.73975408]
[1732699923871,22.52066371,233.16,233.15,119.45345408]
[1732699929069,22.52066371,233.16,233.15,108.94845408]
[1732699929975,22.52066371,233.16,233.15,107.62455408]
[1732699930170,22.52066371,233.16,233.15,94.74455408]
[1732699930369,22.52066371,233.16,233.15,88.22895408]
[1732699930570,22.52066371,233.16,233.15,62.46895408]
[1732699931074,22.52066371,233.16,233.15,37.17115408]
[1732699931275,22.52066371,233.16,233.15,31.50505408]
[1732699931473,22.52066371,233.16,233.15,17.46585408]
[1732699931675,22.52066371,233.16,233.12,252.35474083]
[1732699931870,9.87550265,233.15,233.12,249.76654083]
[1732699932064,9.87550265,233.15,233.12,243.84694083]
[1732699932378,9.87550265,233.15,233.12,235.92444083]
[1732699932577,9.87550265,233.15,233.12,231.75184083]
[1732699932872,9.87550265,233.15,233.12,229.32634083]
[1732699933174,9.87550265,233.15,233.12,224.81024083]
[1732699933370,9.87550265,233.15,233.12,215.92424083]
[1732699933559,9.87550265,233.15,233.12,213.48474083]
[1732699933760,9.87550265,233.15,233.12,211.03174083]
[1732699934069,9.87550265,233.15,233.12,208.57524083]
[1732699934573,12.88,233.14,233.12,208.57524083]
[1732699934781,22.63845507,233.13,233.12,208.57524083]
[1732699935077,22.63845507,233.13,233.12,207.22164083]
[1732699935265,22.63845507,233.13,233.12,203.78544083]
[1732699937188,22.63845507,233.13,233.12,203.67239841]
[1732699937884,22.63845507,233.13,233.12,202.84869841]
[1732699938273,22.63845507,233.13,233.12,189.96869841]
[1732699938464,22.63845507,233.13,233.12,177.08869841]
[1732699938779,22.63845507,233.13,233.12,163.38189841]
[1732699939079,22.63845507,233.13,233.12,150.50189841]
[1732699939581,22.63845507,233.13,233.12,137.62189841]
[1732699939882,22.63845507,233.13,233.12,124.74189841]
[1732699948687,44.42363164,233.13,233.12,124.74189841]
[1732699949786,22.63845507,233.13,233.12,124.74189841]
[1732699951484,44.42363164,233.13,233.12,124.74189841]
[1732699954895,44.42363164,233.13,233.12,108.53617478]
[1732699955075,44.42363164,233.13,233.12,83.01404437]
[1732699955269,44.42363164,233.13,233.12,66.81979603]
[1732699955475,44.42363164,233.13,233.12,57.72154225]
[1732699955788,44.42363164,233.13,233.12,48.58919327]
[1732699955987,44.42363164,233.13,233.12,41.40899432]
[1732699958992,44.42363164,233.13,233.12,32.2211084]